bitfinex-derivatives/quotes_SOLF0:USTF0_20260304
["timestamp","ask_amount","ask_price","bid_price","bid_amount"]
[1772600790316,10.559,85.238,85.18,28.79616478]
[1772600790616,11.72627308,85.259,85.164,28.76265771]
[1772600790617,4.72638953,85.23,85.164,28.76265771]
[1772600791015,4.72638953,85.21,85.141,28.76265771]
[1772600791615,10.564,85.197,85.141,28.76265771]
[1772600791809,4.72638953,85.19,85.085,197.81843985]
[1772600792015,4.72638953,85.19,85.101,28.75993993]
[1772600792615,10.565,85.188,85.108,10.575]
[1772600792920,10.565,85.188,85.109,28.75686632]
[1772600793314,10.566,85.178,85.114,28.74885698]
[1772600795617,172.5193242,85.485,85.085,197.81843985]
[1772600795618,10.569,85.157,85.1,28.7271537]
[1772600795822,10.86400534,85.196,85.1,28.7271537]
[1772600795823,4.72638953,85.18,85.1,33.45354323]
[1772600796912,10.565,85.189,85.121,28.72431895]
[1772600797112,4.72638953,85.2,85.121,28.72431895]
[1772600798114,4.72638953,85.2,85.126,28.56036931]
[1772600798510,83.0,85.199,85.126,28.56036931]
[1772600798915,10.565,85.189,85.126,28.56036931]
[1772600799621,93.564,85.199,85.128,28.53599879]
[1772600801320,93.564,85.199,85.13,28.53264204]
[1772600801621,83.0,85.199,85.13,28.53264204]
[1772600802516,4.72750155,85.19,85.13,28.53264204]
[1772600803323,10.566,85.178,85.13,28.53264204]
[1772600803522,83.0,85.177,85.13,28.53264204]
[1772600804025,83.0,85.189,85.111,28.49534216]
[1772600804224,4.72750155,85.17,85.111,28.49534216]
[1772600804422,83.0,85.169,85.111,28.49534216]
[1772600805424,83.0,85.169,85.112,28.52268896]
[1772600810626,10.567,85.173,85.112,28.52268896]
[1772600811533,83.0,85.177,85.115,28.53848826]
[1772600811721,83.0,85.179,85.115,28.53848826]
[1772600811920,83.0,85.182,85.115,28.53848826]
[1772600813225,10.566,85.181,85.115,28.53848826]
[1772600813429,4.72750155,85.18,85.115,28.53848826]
[1772600813827,83.0,85.182,85.117,28.51626602]
[1772600815429,93.566,85.182,85.124,28.49428157]
[1772600816333,83.0,85.182,85.128,28.49292832]
[1772600816720,83.0,85.19,85.128,28.49292832]
[1772600816921,10.565,85.189,85.128,28.49292832]
[1772600817331,20.23804722,85.189,85.128,28.49292832]
[1772600818131,9.67304722,85.188,85.128,28.49292832]
[1772600818332,9.67304722,85.187,85.128,28.49292832]
[1772600818534,1.58835239,85.17,85.13,28.4445099]
[1772600818831,1.58835239,85.18,85.13,30.03286229]
[1772600819329,83.0,85.179,85.133,28.46525507]
[1772600824839,83.0,85.179,85.085,197.81843985]
[1772600824840,1.58835239,85.16,85.117,28.45474789]
[1772600826834,1.58835239,85.15,85.117,28.45474789]
[1772600827234,1.58835239,85.15,85.1,1.58835239]
[1772600827440,1.58835239,85.14,85.101,28.44255579]
[1772600827641,1.58835239,85.15,85.101,28.44255579]
[1772600828538,1.58835239,85.15,85.103,10.576]
[1772600828734,1.58835239,85.15,85.104,28.4415325]
[1772600830541,9.7023379,85.167,85.121,28.44707408]
[1772600830731,1.58835239,85.17,85.121,28.44707408]
[1772600830732,83.0,85.166,85.121,28.44707408]
[1772600831132,83.0,85.166,85.122,28.44707408]
[1772600831339,83.0,85.166,85.13,1.58835239]
[1772600831643,83.0,85.166,85.131,28.44376159]
[1772600832440,84.58835239,85.17,85.131,28.44376159]
[1772600833140,83.0,85.17,85.131,28.44376159]
[1772600833442,83.0,85.17,85.141,28.43692188]
[1772600833740,83.0,85.189,85.141,28.43692188]
[1772600833941,1.58835239,85.18,85.141,28.43692188]
[1772600834142,1.58835239,85.17,85.141,28.43692188]
[1772600834342,1.58835239,85.16,85.127,28.43595196]
[1772600836242,9.74343798,85.159,85.127,28.43595196]
[1772600836443,9.74343798,85.158,85.111,28.44441142]
[1772600836642,1.58835239,85.15,85.111,28.44441142]
[1772600837042,9.74505159,85.149,85.111,28.44441142]
[1772600837343,9.74505159,85.148,85.111,28.44441142]
[1772600837543,9.74505159,85.147,85.111,28.44441142]
[1772600837844,9.74505159,85.146,85.111,28.44441142]
[1772600838044,9.74505159,85.145,85.111,28.44441142]
[1772600838344,1.58835239,85.16,85.111,28.44441142]
[1772600838643,9.74338415,85.159,85.111,28.44441142]
[1772600838851,9.74338415,85.158,85.111,28.44441142]
[1772600839041,9.74338415,85.157,85.111,28.44441142]
[1772600839240,9.74338415,85.156,85.111,28.44441142]
[1772600839444,9.74338415,85.155,85.111,28.44441142]
[1772600839640,9.74338415,85.154,85.111,28.44441142]
[1772600839841,83.0,85.168,85.121,28.43587501]
[1772600840044,92.7426834,85.167,85.121,28.43587501]
[1772600840238,1.58835239,85.16,85.121,28.43587501]
[1772600840435,9.7426834,85.159,85.121,28.43587501]
[1772600840635,9.7426834,85.158,85.121,28.43587501]
[1772600840844,9.7426834,85.157,85.121,28.43587501]
[1772600841146,9.7426834,85.156,85.121,28.43587501]
[1772600841347,9.7426834,85.155,85.121,28.43587501]
[1772600841546,1.58835239,85.16,85.121,28.43587501]
[1772600841746,9.74261561,85.159,85.121,28.43587501]
[1772600841947,9.74261561,85.158,85.121,28.43587501]
[1772600842146,9.74261561,85.157,85.121,28.43587501]
[1772600842346,9.74261561,85.156,85.121,28.43587501]
[1772600842547,9.7431602,85.155,85.121,28.43587501]
[1772600842743,83.0,85.167,85.121,28.43587501]
[1772600842945,9.7431602,85.166,85.121,28.43587501]
[1772600843144,9.7431602,85.165,85.121,28.43587501]
[1772600843340,9.7431602,85.164,85.121,28.43587501]
[1772600843544,1.58835239,85.16,85.121,28.43587501]
[1772600843747,9.7431602,85.159,85.121,28.43587501]
[1772600844048,9.7431602,85.158,85.121,28.43587501]
[1772600844245,1.58835239,85.16,85.121,28.43587501]
[1772600844246,9.7431602,85.157,85.121,28.43587501]
[1772600844443,9.7431602,85.156,85.121,28.43587501]
[1772600844649,9.7431602,85.155,85.121,28.43587501]
[1772600844850,9.7431602,85.154,85.121,28.43587501]
[1772600845049,9.7431602,85.153,85.121,28.43587501]
[1772600845345,9.7431602,85.152,85.121,28.43587501]
[1772600845651,9.7431602,85.151,85.121,28.43587501]
[1772600845845,10.566,85.178,85.085,197.81843985]
[1772600845846,10.86995211,85.172,85.125,28.44059479]
[1772600846051,10.86995211,85.19,85.151,23.56794582]
[1772600846352,10.86995211,85.194,85.151,23.56794582]
[1772600846550,10.86995211,85.195,85.151,23.56794582]
[1772600846751,10.86995211,85.196,85.151,23.56794582]
[1772600846948,9.84273409,85.199,85.151,23.56794582]
[1772600847149,10.86995211,85.205,85.161,23.56701519]
[1772600847353,1.58835239,85.21,85.161,23.56701519]
[1772600847549,9.83903542,85.218,85.171,23.60572076]
[1772600847749,1.58835239,85.22,85.171,23.60572076]
[1772600849549,1.58835239,85.22,85.183,23.58177081]
[1772600849754,83.0,85.231,85.191,23.58177081]
[1772600849950,1.58835239,85.24,85.191,23.58177081]
[1772600851152,1.58835239,85.25,85.201,23.58079564]
[1772600851353,1.58835239,85.24,85.201,23.58079564]
[1772600852555,1.58835239,85.25,85.201,23.58079564]
[1772600853556,1.58835239,85.26,85.211,23.58384518]
[1772600854960,83.0,85.272,85.201,23.58380975]
[1772600854961,1.58835239,85.24,85.201,23.58380975]
[1772600856061,11.78189208,85.285,85.201,23.58380975]
[1772600856062,1.58835239,85.25,85.201,23.58380975]
[1772600856459,1.58835239,85.23,85.194,23.59170905]
[1772600858763,83.0,85.249,85.201,23.62389257]
[1772600858967,84.58835239,85.25,85.201,23.62389257]
[1772600859667,16.198257,85.298,85.23,1.58835239]
[1772600859966,3.0,85.301,85.23,1.58835239]
[1772600859967,17.78660939,85.28,85.23,1.58835239]
[1772600860464,16.198257,85.28,85.22,4.71487299]
[1772600861065,16.18118171,85.31,85.24,4.71487299]
[1772600861360,16.18118171,85.31,85.241,10.558]
[1772600862463,2.04111558,85.335,85.2,4.71487299]
[1772600862464,16.15124122,85.299,85.228,10.56]
[1772600863667,16.15124122,85.299,85.238,10.559]
[1772600863870,16.15124122,85.299,85.24,4.714299]
[1772600864067,16.16288659,85.315,85.245,10.558]
[1772600864371,16.16288659,85.315,85.24,4.714299]
[1772600865071,16.16288659,85.315,85.265,10.555]
[1772600865671,16.15224982,85.339,85.265,10.555]
[1772600866265,16.15224982,85.339,85.275,10.554]
[1772600868173,16.15224982,85.339,85.263,10.556]
[1772600868477,16.15224982,85.339,85.26,4.714299]
[1772600869172,16.15224982,85.339,85.284,10.553]
[1772600869473,16.24074049,85.366,85.29,4.714299]
[1772600870871,16.24074049,85.366,85.303,10.551]
[1772600872666,16.24074049,85.366,85.29,4.714299]
[1772600872872,16.14842437,85.359,85.29,4.714299]
[1772600874268,16.14842437,85.359,85.293,10.552]
[1772600877379,16.14842437,85.359,85.303,10.551]
[1772600877576,16.08598357,85.375,85.31,4.714299]
[1772600879283,16.08598357,85.375,85.28,4.714299]
[1772600879578,16.08598357,85.375,85.31,10.55]
[1772600879777,16.08598357,85.375,85.3,4.714299]
[1772600880179,16.08598357,85.375,85.32,10.549]
[1772600880582,16.08598357,85.375,85.3,4.714299]
[1772600880882,16.08598357,85.375,85.308,10.55]
[1772600881579,16.08598357,85.375,85.3,4.714299]
[1772600881580,16.08598357,85.375,85.317,10.549]
[1772600882680,16.05031825,85.369,85.251,21.115]
[1772600882981,16.05031825,85.369,85.29,4.714299]
[1772600883182,16.05031825,85.369,85.299,10.551]
[1772600883976,16.05031825,85.369,85.29,4.714299]
[1772600885079,16.05031825,85.369,85.25,4.714299]
[1772600885080,15.90277801,85.355,85.25,4.714299]
[1772600885389,15.90277801,85.355,85.223,21.122]
[1772600885390,15.90277801,85.349,85.26,4.714299]
[1772600885986,15.87837947,85.343,85.28,4.714299]
[1772600886387,15.87837947,85.343,85.284,10.553]
[1772600886683,15.87837947,85.343,85.28,4.714299]
[1772600887183,15.82097965,85.329,85.26,4.714299]
[1772600888388,15.82097965,85.329,85.261,10.556]
[1772600888589,15.82097965,85.329,85.26,4.714299]
[1772600888790,15.81434947,85.349,85.28,4.714299]
[1772600889491,15.81434947,85.349,85.281,10.554]
[1772600890986,15.72620357,85.347,85.269,10.555]
[1772600891194,15.72620357,85.329,85.24,4.714299]
[1772600891789,15.71913688,85.328,85.245,10.558]
[1772600892486,15.71208382,85.322,85.245,10.558]
[1772600893192,15.71208382,85.322,85.255,10.557]
[1772600894293,15.71208382,85.322,85.265,10.556]
[1772600894594,15.71208382,85.322,85.24,4.714299]
[1772600895889,15.68529181,85.32,85.24,4.714299]
[1772600896586,15.68529181,85.32,85.253,10.557]
[1772600897095,15.68529181,85.32,85.263,10.556]
[1772600897290,15.68529181,85.32,85.24,4.714299]
[1772600897693,4.714299,85.31,85.24,4.714299]
[1772600897892,15.6719339,85.309,85.24,4.714299]
[1772600898297,15.65880507,85.308,85.24,15.273299]
[1772600900800,15.65880507,85.308,85.249,10.558]
[1772600902501,15.65511319,85.299,85.251,10.557]
[1772600902701,10.7690417,85.334,85.193,21.129]
[1772600902702,17.23874551,85.29,85.24,1.58363232]
[1772600903001,17.23874551,85.29,85.25,1.58363232]
[1772600903794,17.23874551,85.29,85.193,21.129]
[1772600904000,15.63922673,85.279,85.23,1.58363232]
[1772600904502,15.63922673,85.279,85.23,12.14363232]
[1772600905595,15.61742822,85.294,85.25,1.58363232]
[1772600906196,1.58363232,85.28,85.233,10.559]
[1772600906595,1.58363232,85.28,85.157,196.72766431]
[1772600906596,15.61165618,85.279,85.2,10.564]
[1772600906800,15.61165618,85.277,85.2,10.564]
[1772600906997,15.61165618,85.275,85.2,10.564]
[1772600907199,15.61165618,85.274,85.2,10.564]
[1772600907605,15.61165618,85.274,85.209,10.562]
[1772600909603,15.61165618,85.274,85.21,4.71485521]
[1772600909794,15.53927407,85.299,85.23,4.71485521]
[1772600911903,15.53927407,85.299,85.231,10.56]
[1772600913799,15.53927407,85.299,85.22,10.561]
[1772600914099,15.49159527,85.298,85.22,10.561]
[1772600914605,15.48587786,85.296,85.228,10.56]
[1772600916006,15.50489761,85.294,85.228,10.56]
[1772600916407,15.50489761,85.294,85.233,10.56]
[1772600919303,15.50489761,85.294,85.21,4.71485521]
[1772600919708,15.45586935,85.293,85.229,10.56]
[1772600919904,15.45586935,85.293,85.21,4.71485521]
[1772600920099,15.45586935,85.293,85.23,4.71485521]
[1772600920299,15.45586935,85.293,85.249,10.557]
[1772600922205,15.45586935,85.293,85.253,10.557]
[1772600922509,15.41995902,85.319,85.25,4.71130088]
[1772600922897,15.41995902,85.319,85.261,10.556]
[1772600925911,15.41995902,85.319,85.252,10.557]
[1772600926609,15.46857014,85.309,85.26,1.583324]
[1772600926815,15.46857014,85.324,85.28,1.583324]
[1772600927112,15.46857014,85.338,85.3,1.583324]
[1772600927314,15.46857014,85.338,85.29,1.583324]
[1772600927510,17.04342904,85.33,85.28,1.583324]
[1772600927711,15.46010504,85.33,85.28,1.583324]
[1772600927912,15.46010504,85.33,85.29,1.583324]
[1772600928512,17.04342904,85.33,85.29,1.583324]
[1772600929015,17.04342904,85.33,85.28,1.583324]
[1772600929411,17.04342904,85.33,85.29,1.583324]
[1772600930811,17.04342904,85.33,85.224,21.122]
[1772600930812,15.62598321,85.344,85.3,1.583324]
[1772600931018,15.62598321,85.342,85.3,1.583324]
[1772600931819,15.62697174,85.339,85.226,164.28]
[1772600932117,15.62697174,85.339,85.29,1.583324]
[1772600932720,15.62697174,85.339,85.3,1.583324]
[1772600933415,15.62697174,85.339,85.28,1.583324]
[1772600933616,15.65195444,85.329,85.227,164.277]
[1772600933917,15.65195444,85.329,85.29,1.583324]
[1772600936421,15.65195444,85.329,85.28,1.583324]
[1772600937428,15.63300933,85.319,85.27,1.583324]
[1772600937629,15.63300933,85.366,85.31,1.583324]
[1772600937927,15.63300933,85.366,85.32,1.583324]
[1772600938225,15.62946294,85.349,85.31,1.583324]
[1772600938626,15.62946294,85.349,85.25,21.115]
[1772600938627,15.62946294,85.365,85.32,1.583324]
[1772600940430,15.62946294,85.365,85.312,10.55]
[1772600940725,15.62946294,85.365,85.322,10.548]
[1772600940932,15.3079916,85.398,85.322,10.548]
[1772600941228,15.3079916,85.398,85.32,4.70560098]
[1772600941428,15.3079916,85.398,85.332,10.547]
[1772600942323,15.3079916,85.398,85.34,4.70560098]
[1772600942730,15.3079916,85.398,85.341,10.546]
[1772600943234,15.3079916,85.398,85.3,4.70560098]
[1772600943235,15.3079916,85.398,85.33,4.70560098]
[1772600943436,15.3079916,85.398,85.331,10.547]
[1772600944129,15.33230292,85.406,85.352,10.545]
[1772600944528,15.33230292,85.406,85.35,4.70560098]
[1772600945129,458.7730664,85.407,85.35,4.70560098]
[1772600945324,15.32787233,85.421,85.35,4.70560098]
[1772600947131,15.32787233,85.421,85.363,10.543]
[1772600951539,15.32787233,85.421,85.35,15.25060098]
[1772600952632,15.32787233,85.421,85.362,10.543]
[1772600953229,15.32787233,85.421,85.35,4.70560098]
[1772600953428,15.32787233,85.421,85.372,10.542]
[1772600955741,15.32787233,85.421,85.361,10.544]
[1772600956040,15.32787233,85.421,85.35,4.70560098]
[1772600956632,15.06335179,85.449,85.37,4.70560098]
[1772600957641,15.06335179,85.449,85.383,10.541]
[1772600960036,15.06335179,85.449,85.39,4.70560098]
[1772600960541,15.06335179,85.449,85.402,10.539]
[1772600961543,15.06335179,85.449,85.392,10.54]
[1772600961939,15.06335179,85.449,85.402,10.539]
[1772600962344,15.06335179,85.449,85.39,4.70560098]
[1772600962541,15.00749086,85.439,85.39,1.5782825]
[1772600963138,15.00749086,85.429,85.39,1.5782825]
[1772600963545,15.00749086,85.429,85.38,1.5782825]
[1772600965147,286.05693216,85.477,85.38,1.5782825]
[1772600965148,14.9874611,85.419,85.38,1.5782825]
[1772600965944,14.9874611,85.419,85.37,1.5782825]
[1772600968049,14.9874611,85.419,85.38,1.5782825]
[1772600970661,14.9874611,85.419,85.37,1.5782825]
[1772600973158,14.9509217,85.409,85.37,1.5782825]
[1772600973949,14.9509217,85.409,85.38,1.5782825]
[1772600975056,14.9509217,85.409,85.37,1.5782825]
[1772600978761,14.9509217,85.409,85.36,1.5782825]
[1772600979563,14.93360748,85.389,85.331,10.547]
[1772600979756,14.93360748,85.389,85.34,1.5782825]
[1772600980156,14.93360748,85.379,85.331,10.547]
[1772600980755,14.93360748,85.379,85.34,1.5782825]
[1772600981562,14.93360748,85.379,85.309,187.32]
[1772600981563,14.93360748,85.379,85.35,1.5782825]
[1772600984358,14.93360748,85.379,85.34,1.5782825]
[1772600984558,14.93360748,85.379,85.34,1.58035872]
[1772600985262,15.08377628,85.369,85.32,1.58035872]
[1772600986058,15.08377628,85.369,85.33,1.58035872]
[1772600986266,15.08377628,85.369,85.34,1.58035872]
[1772600986463,15.08377628,85.369,85.33,1.58035872]
[1772600988765,1.58035872,85.35,85.301,1.08988041]
[1772600988975,14.27797254,85.351,85.31,1.58035872]
[1772600989478,14.31614275,85.349,85.31,1.58035872]
[1772600989778,14.31614275,85.349,85.301,1.08988041]
[1772600991779,14.35610692,85.339,85.288,1.09451026]
[1772600991979,14.35610692,85.339,85.29,1.58035872]
[1772600993280,14.45669395,85.391,85.276,1.09451026]
[1772600993281,14.35383285,85.329,85.28,1.58035872]
[1772600993480,14.33655176,85.319,85.28,1.58035872]
[1772600993682,14.33655176,85.336,85.29,1.58035872]
[1772600993874,14.33655176,85.33,85.29,1.58035872]
[1772600994273,14.33431052,85.319,85.28,1.58035872]
[1772600994477,14.33431052,85.319,85.27,1.58035872]
[1772600995076,14.33431052,85.319,85.28,1.58035872]
[1772600995376,14.33431052,85.319,85.29,1.58035872]
[1772600995583,14.33431052,85.319,85.278,1.3391347]
[1772600995584,14.33719673,85.339,85.3,1.58035872]
[1772600996082,14.33719673,85.339,85.29,1.58035872]
[1772600997472,14.33719673,85.339,85.3,1.58035872]
[1772600998881,14.33803057,85.353,85.31,1.58035872]
[1772600999086,14.33803057,85.366,85.33,1.58035872]
[1772601000385,14.38729909,85.389,85.35,1.58035872]
[1772601000786,14.38729909,85.389,85.36,1.58035872]
[1772601000983,14.38729909,85.389,85.34,1.58035872]
[1772601001185,14.38729909,85.379,85.33,1.58035872]
[1772601003376,14.46517614,85.369,85.32,1.58035872]
[1772601003576,14.46517614,85.359,85.31,1.58035872]
[1772601003981,14.46517614,85.349,85.31,1.58035872]
[1772601005587,14.46517614,85.349,85.3,1.58035872]
[1772601006987,14.46517614,85.349,85.3,12.13135872]
[1772601007184,14.46517614,85.349,85.31,1.58035872]
[1772601008290,14.4975653,85.369,85.32,1.58035872]
[1772601010684,14.4975653,85.369,85.32,12.12935872]
[1772601011892,14.4975653,85.369,85.32,1.58035872]
[1772601012090,14.4975653,85.369,85.31,12.1764366]
[1772601012288,14.4975653,85.369,85.32,1.58035872]
[1772601012990,14.4975653,85.369,85.33,1.58035872]
[1772601015596,14.47022698,85.383,85.34,1.58035872]
[1772601017897,14.43161932,85.379,85.34,1.58035872]
[1772601018098,14.43161932,85.379,85.333,1.97239541]
[1772601018598,14.43161932,85.379,85.35,1.58035872]
[1772601020299,15.46779186,85.394,85.36,1.58035872]
[1772601020694,17.04815058,85.41,85.362,10.544]
[1772601020901,15.46779186,85.41,85.37,1.58035872]
[1772601021298,1.58035872,85.4,85.35,1.58035872]
[1772601021499,15.46779186,85.399,85.35,1.58035872]
[1772601024002,15.46779186,85.399,85.36,1.58035872]
[1772601024296,15.46779186,85.399,85.35,1.58035872]
[1772601024502,15.46779186,85.389,85.35,1.58035872]
[1772601025198,15.46779186,85.409,85.36,1.58035872]
[1772601026201,15.46779186,85.409,85.302,21.102]
[1772601026202,15.46779186,85.409,85.37,1.58035872]
[1772601027704,15.46779186,85.409,85.36,1.58035872]
[1772601030601,15.46779186,85.409,85.36,12.12435872]
[1772601030802,15.46779186,85.409,85.36,1.58035872]
[1772601033506,15.46779186,85.399,85.336,1.56619794]
[1772601033703,15.46779186,85.389,85.36,1.58035872]
[1772601034806,10.80596031,85.437,85.37,1.58035872]
[1772601034807,15.46779186,85.409,85.37,1.58035872]
[1772601036009,15.46779186,85.409,85.36,1.58035872]
[1772601036204,15.46779186,85.409,85.361,10.544]
[1772601036410,15.46779186,85.409,85.37,1.58035872]
[1772601036802,15.46779186,85.409,85.37,12.12335872]
[1772601037004,15.46779186,85.409,85.38,1.58035872]
[1772601038507,15.46779186,85.409,85.37,10.543]
[1772601038508,15.46779186,85.409,85.37,1.58035872]
[1772601039404,15.46779186,85.409,85.36,12.12435872]
[1772601040510,15.46779186,85.409,85.37,1.58035872]
[1772601041611,15.46779186,85.399,85.351,10.545]
[1772601042415,15.46779186,85.399,85.36,1.58035872]
[1772601045316,15.46779186,85.399,85.351,10.545]
[1772601045916,15.46779186,85.399,85.351,13.92591434]
[1772601047516,15.46779186,85.399,85.352,3.43868457]
[1772601050624,15.46779186,85.399,85.351,10.545]
[1772601052228,15.64900627,85.397,85.351,10.545]
[1772601052731,15.64900627,85.389,85.341,10.546]
[1772601052926,15.64900627,85.389,85.282,28.83875509]
[1772601052927,15.64900627,85.379,85.33,1.57970306]
[1772601053724,15.64900627,85.369,85.33,10.547]
[1772601053927,15.64900627,85.369,85.32,1.57970306]
[1772601054123,15.64900627,85.359,85.314,3.60037854]
[1772601054329,1.57970306,85.35,85.3,5.20495798]
[1772601054630,15.64900627,85.349,85.301,3.62611044]
[1772601054934,15.64900627,85.339,85.29,1.57970306]
[1772601055329,15.64900627,85.339,85.301,4.30039143]
[1772601055534,15.64900627,85.352,85.32,1.57970306]
[1772601058036,15.64900627,85.352,85.31,1.57970306]
[1772601059538,15.64900627,85.352,85.311,14.97337847]
[1772601059737,15.64900627,85.352,85.32,1.57970306]
[1772601060436,15.64900627,85.365,85.33,1.57970306]
[1772601061035,15.64900627,85.379,85.33,6.05063301]
[1772601061240,15.64900627,85.379,85.34,1.57970306]
[1772601061641,15.64900627,85.379,85.332,10.547]
[1772601061940,15.64900627,85.379,85.34,1.57970306]
[1772601062730,15.64900627,85.379,85.35,1.57970306]
[1772601064040,15.64900627,85.369,85.33,1.57970306]
[1772601072250,15.64900627,85.382,85.34,1.57970306]
[1772601074144,15.64900627,85.379,85.331,15.33992101]
[1772601074747,15.64900627,85.379,85.341,10.546]
[1772601076340,15.64900627,85.379,85.34,1.57970306]
[1772601078252,15.13133187,85.393,85.351,4.91236166]
[1772601078548,15.13133187,85.393,85.36,1.57970306]
[1772601079351,15.13133187,85.393,85.351,4.91236166]
[1772601080955,15.57262832,85.389,85.34,1.57970306]
[1772601081647,15.57262832,85.389,85.333,10.547]
[1772601081648,15.57262832,85.369,85.321,10.549]
[1772601082444,15.57262832,85.369,85.321,4.90682303]
[1772601082649,15.57262832,85.369,85.331,10.547]
[1772601082849,15.57262832,85.369,85.33,1.57970306]
[1772601083056,15.57262832,85.369,85.321,4.90682303]
[1772601083353,15.57262832,85.369,85.322,10.548]
[1772601084957,15.57262832,85.369,85.33,1.57970306]
[1772601086655,15.57262832,85.369,85.34,1.57970306]
[1772601086853,15.57262832,85.388,85.35,1.57970306]
[1772601087950,15.57262832,85.379,85.33,1.57970306]
[1772601089358,15.57262832,85.369,85.33,1.57970306]
[1772601089853,15.57262832,85.369,85.331,10.547]
[1772601090160,15.57262832,85.392,85.34,1.57970306]
[1772601090358,9.45116312,85.391,85.34,1.57970306]
[1772601090557,25.02379144,85.39,85.34,1.57970306]
[1772601090861,15.57262832,85.388,85.34,1.57970306]
[1772601091655,15.57262832,85.379,85.34,1.57970306]
[1772601091857,15.57262832,85.379,85.33,1.57970306]
[1772601092062,15.57262832,85.379,85.32,1.57970306]
[1772601092457,15.57262832,85.359,85.311,10.55]
[1772601099266,15.57262832,85.359,85.31,1.57970306]
[1772601101367,15.57262832,85.359,85.31,12.12970306]
[1772601101769,15.57262832,85.339,85.293,5.02662077]
[1772601101961,15.57262832,85.339,85.3,1.57970306]
[1772601103168,15.57262832,85.339,85.31,1.57970306]
[1772601104864,15.57262832,85.352,85.32,1.57970306]
[1772601105764,15.57262832,85.369,85.33,1.57970306]
[1772601106167,15.57262832,85.369,85.34,1.57970306]
[1772601106469,15.57262832,85.369,85.33,1.58042217]
[1772601106968,15.57262832,85.369,85.34,1.58042217]
[1772601108870,15.24126387,85.385,85.35,1.58042217]
[1772601109371,15.24126387,85.385,85.34,1.58042217]
[1772601109570,15.24126387,85.379,85.33,1.58042217]
[1772601114570,15.24126387,85.379,85.332,10.547]
[1772601117465,15.24126387,85.379,85.341,5.06969941]
[1772601117667,15.24126387,85.379,85.35,1.58042217]
[1772601117871,24.69239239,85.399,85.35,1.58042217]
[1772601118074,15.24126387,85.397,85.35,1.58042217]
[1772601118268,15.24126387,85.395,85.35,1.58042217]
[1772601119170,15.24126387,85.389,85.35,1.58042217]
[1772601119962,15.24126387,85.389,85.346,10.545]
[1772601120365,15.24126387,85.379,85.336,10.547]
[1772601120965,15.24126387,85.379,85.33,1.58042217]
[1772601121167,15.24126387,85.369,85.326,10.548]
[1772601122171,15.24126387,85.369,85.331,10.547]
[1772601122379,15.24126387,85.369,85.34,1.58042217]
[1772601123078,15.24126387,85.369,85.331,5.1549266]
[1772601124375,15.24126387,85.369,85.332,15.53900686]
[1772601124775,15.24126387,85.369,85.34,1.58042217]
[1772601125486,15.24126387,85.369,85.332,15.53900686]
[1772601125775,15.24126387,85.381,85.34,1.58042217]
[1772601125981,15.24126387,85.381,85.35,1.58042217]
[1772601126680,15.24126387,85.381,85.34,6.57772128]
[1772601127278,15.24126387,85.381,85.342,10.546]
[1772601128183,15.24126387,85.379,85.332,15.61344544]
[1772601128383,15.24126387,85.379,85.333,5.06661951]
[1772601128783,15.24126387,85.379,85.34,6.64704168]
[1772601129683,15.24126387,85.379,85.343,10.546]
[1772601130480,15.24126387,85.379,85.34,6.64704168]
[1772601130681,15.24126387,85.379,85.33,1.58042217]
[1772601130882,15.24126387,85.379,85.341,5.11593266]
[1772601132283,15.24126387,85.379,85.342,10.546]
[1772601137582,15.24126387,85.379,85.341,5.11593266]
[1772601138678,15.24126387,85.379,85.341,15.66193266]
[1772601139283,1.58042217,85.39,85.349,10.545]
[1772601139487,15.02602915,85.391,85.35,1.58042217]
[1772601139877,15.28700133,85.389,85.342,5.11834917]
[1772601140689,15.28700133,85.389,85.34,1.58042217]
[1772601141079,15.28700133,85.389,85.342,10.546]
[1772601142179,15.28700133,85.389,85.349,10.545]
[1772601142487,15.28700133,85.389,85.343,5.12225443]
[1772601142687,15.28700133,85.389,85.346,5.12239786]
[1772601143084,15.28700133,85.389,85.34,1.58042217]
[1772601143682,15.28700133,85.379,85.334,5.12595072]
[1772601144282,15.28700133,85.379,85.335,10.547]
[1772601144482,15.28700133,85.379,85.34,1.58042217]
[1772601145085,15.28700133,85.39,85.35,1.58042217]
[1772601151500,15.28700133,85.39,85.342,10.546]
[1772601152199,1.58042217,85.37,85.32,1.58042217]
[1772601152398,15.28700133,85.369,85.32,1.58042217]
[1772601152588,15.28700133,85.369,85.317,5.15719741]
[1772601152793,15.28700133,85.369,85.32,1.58042217]
[1772601153096,15.28700133,85.359,85.32,1.58042217]
[1772601156497,15.28700133,85.359,85.31,1.58042217]
[1772601156692,15.28700133,85.349,85.31,1.58042217]